lending/lending_fUSD_20250318
["ID","MTS","AMOUNT","RATE_DAILY","PERIOD"]
[356337616,1742293604635,-255.39114254,9.899e-05,2]
[356337617,1742293604661,-150.0,9.899e-05,2]
[356337618,1742293604689,-161.0038,9.9e-05,2]
[356337619,1742293604717,-455.7459,9.9e-05,2]
[356337620,1742293604746,-73443.6984,9.9e-05,2]
[356337621,1742293604773,-313.8626,9.9e-05,2]
[356337622,1742293605199,-3222.003808,9.9e-05,2]
[356337623,1742293605228,-254.1871,9.9e-05,2]
[356337624,1742293605256,-2590.268,9.9e-05,2]
[356337625,1742293605283,-196.49,9.9e-05,2]
[356337626,1742293605315,-9992.79691326,9.9e-05,2]
[356337966,1742293675020,65386.99152665,8e-05,2]
[356337967,1742293713158,-348.4142522,9.7e-05,2]
[356337968,1742293713189,-300.0,9.899e-05,2]
[356337969,1742293713219,-11575.35465007,9.9e-05,2]
[356337970,1742293713249,-2154.0,9.973e-05,2]
[356337971,1742293713277,-500.0,9.973e-05,2]
[356337972,1742293713307,-243.1432606,9.973e-05,2]
[356337973,1742293713337,-502.29625694,9.999e-05,2]
[356337974,1742293713368,-591.20556994,9.999e-05,2]
[356337975,1742293713398,-150.0,9.999e-05,2]
[356337976,1742293713431,-25635.58601025,0.0001,2]
[356337994,1742293832248,-261.3106891,9.7e-05,2]
[356337995,1742293832259,-500.0,9.973e-05,2]
[356337996,1742293832269,-418.26515099,9.999e-05,2]
[356337997,1742293832279,-2459.08005167,0.0001,2]
[356337998,1742293832302,-438.97982347,0.0001,2]
[356337999,1742293832314,-2400.16032161,0.0001,2]
[356338000,1742293832358,-258.77671131,0.0001,2]
[356338001,1742293832417,-6269.60148667,0.0001,2]
[356338002,1742293832472,-533.22015203,0.0001,2]
[356338003,1742293832484,-458.11714593,0.0001,2]
[356338024,1742293839117,-285.37500055,0.0001,2]
[356338025,1742293839129,-683.28850818,0.0001,2]
[356338026,1742293839140,-500.0,0.0001,2]
[356338027,1742293839152,-1105.0,0.0001,2]
[356338028,1742293839163,-10030.28308659,0.0001,2]
[356338029,1742293839177,-517.34603854,0.0001,2]
[356338030,1742293839243,-8300.2687232,0.0001,2]
[356338058,1742293840639,-1262.87662145,0.0001,2]
[356338059,1742293840651,-255.8055,0.0001,2]
[356338060,1742293840671,-434.54746564,0.0001,2]
[356338061,1742293840687,-643.65507974,0.0001,2]
[356338062,1742293840698,-947.01167179,0.0001,2]
[356338088,1742293844003,-673.09223021,0.0001,2]
[356338089,1742293844015,-814.82264092,0.0001,2]
[356338090,1742293844030,-782.55208511,0.0001,2]
[356338097,1742293844484,-5102.64546493,0.0001,2]
[356338106,1742293846459,-563.2364726,0.0001,2]
[356338107,1742293846471,-3225.64857463,0.0001,2]
[356338108,1742293846518,-468.68885309,0.0001,2]
[356338109,1742293846576,-1039.31566167,0.0001,2]
[356338110,1742293846588,-835.251322,0.0001,2]
[356338111,1742293846599,-361.92148758,0.0001,2]
[356338112,1742293846611,-4348.48764898,0.0001,2]
[356338113,1742293846623,-873.30308618,0.0001,2]
[356338147,1742293977984,300.0,9.7e-05,3]
[356338148,1742293980075,700.0,9.8e-05,3]
[356338149,1742293982173,1100.0,9.9e-05,3]
[356338150,1742293984275,1500.0,0.0001,3]
[356338190,1742295032187,-443.4542119,9.7e-05,2]
[356338192,1742295032197,-150.0,9.8e-05,2]
[356338194,1742295032207,-150.0,9.863e-05,2]
[356338196,1742295032217,-500.0,9.873e-05,2]
[356338198,1742295032226,-150.0,9.899e-05,2]
[356338200,1742295032235,-28383.7743,9.9e-05,2]
[356338202,1742295032245,-4623.8135,9.9e-05,2]
[356338204,1742295032255,-8609.7551181,9.9e-05,2]
[356338206,1742295032267,-2897.92449487,9.9e-05,2]
[356338210,1742295032294,-2098.6035,9.9e-05,2]
[356338212,1742295032315,-410.11441314,9.9e-05,2]
[356338220,1742295032380,-434.15730712,9.9e-05,2]
[356338233,1742295037418,-11245.81056677,9.9e-05,2]
[356338234,1742295037427,-8357.28752334,9.9e-05,2]
[356338235,1742295037471,-413.987,9.9e-05,2]
[356338236,1742295037526,-7302.3835149,9.9e-05,2]
[356338237,1742295037537,-4474.5078493,9.9e-05,2]
[356338238,1742295037553,-18705.9939885,9.9e-05,2]
[356338239,1742295037564,-432.37,9.9e-05,2]
[356338244,1742295039618,-265.03699628,9.9e-05,2]
[356338245,1742295039670,-639.11537689,9.9e-05,2]
[356338246,1742295039681,-83257.72567692,9.9e-05,2]
[356338247,1742295039887,-389.24638423,9.9e-05,2]
[356338248,1742295039899,-1966.75235456,9.9e-05,2]
[356338293,1742295043358,-987.27315157,9.9e-05,2]
[356338294,1742295043997,-54260.50531527,9.9e-05,2]
[356338295,1742295044007,-531.498659,9.9e-05,2]
[356338296,1742295044017,-2087.1923,9.9e-05,2]
[356338297,1742295044027,-4514.9493,9.9e-05,2]
[356338298,1742295044037,-151.0,9.999e-05,2]
[356338299,1742295044047,-558.0,0.0001,2]
[356338300,1742295044057,-2086030.79997206,0.0001,2]
[356338301,1742295044068,-209173.68001771,0.0001,2]
[356338302,1742295044078,-1250223.81250152,0.0001,2]
[356338303,1742295044088,-160.84583338,0.0001,2]
[356338304,1742295044097,-158.47579151,0.0001,2]
[356338305,1742295044108,-151.0,0.0001,2]
[356338306,1742295044120,-151.0,0.0001,2]
[356338307,1742295044130,-247.781495,0.0001,2]
[356338308,1742295044140,-151.0,0.0001,2]
[356338309,1742295044149,-299.742839,0.0001,2]
[356338310,1742295044160,-151.0,0.0001,2]
[356338311,1742295044170,-152.555446,0.0001,2]
[356338312,1742295044180,-151.0,0.0001,2]
[356338313,1742295044190,-151.0,0.0001,2]
[356338314,1742295044199,-248.623338,0.0001,2]
[356338315,1742295044209,-151.0,0.0001,2]
[356338316,1742295044219,-400.595796,0.0001,2]
[356338317,1742295044228,-151.0,0.0001,2]
[356338318,1742295044238,-400.595796,0.0001,2]
[356338319,1742295044247,-151.0,0.0001,2]
[356338320,1742295044257,-151.0,0.0001,2]
[356338321,1742295044267,-151.0,0.0001,2]
[356338322,1742295044277,-151.0,0.0001,2]
[356338323,1742295044287,-151.0,0.0001,2]
[356338324,1742295044297,-151.423023,0.0001,2]
[356338325,1742295044307,-151.0,0.0001,2]
[356338326,1742295044317,-151.852213,0.0001,2]
[356338327,1742295044326,-156.31624,0.0001,2]
[356338328,1742295044336,-151.0,0.0001,2]
[356338329,1742295044346,-151.0,0.0001,2]
[356338330,1742295044355,-153.25322,0.0001,2]
[356338331,1742295044365,-231.141885,0.0001,2]
[356338332,1742295044374,-151.0,0.0001,2]
[356338333,1742295044384,-151.0,0.0001,2]
[356338334,1742295044394,-151.0,0.0001,2]
[356338335,1742295044403,-151.0,0.0001,2]
[356338336,1742295044413,-151.938288,0.0001,2]
[356338337,1742295044423,-151.281065,0.0001,2]
[356338338,1742295044432,-406.739551,0.0001,2]
[356338339,1742295044443,-406.739551,0.0001,2]
[356338340,1742295044453,-151.76164,0.0001,2]
[356338341,1742295044463,-151.0,0.0001,2]
[356338342,1742295044473,-151.0,0.0001,2]
[356338343,1742295044483,-151.0,0.0001,2]
[356338344,1742295044492,-151.0,0.0001,2]
[356338345,1742295044502,-151.0,0.0001,2]
[356338346,1742295044511,-152.481266,0.0001,2]
[356338347,1742295044521,-152.339009,0.0001,2]
[356338348,1742295044531,-151.0,0.0001,2]
[356338349,1742295044540,-151.0,0.0001,2]
[356338350,1742295044550,-151.0,0.0001,2]
[356338351,1742295044560,-151.0,0.0001,2]
[356338352,1742295044569,-151.0,0.0001,2]
[356338353,1742295044579,-151.0,0.0001,2]
[356338354,1742295044589,-151.0,0.0001,2]
[356338355,1742295044599,-152.156175,0.0001,2]
[356338356,1742295044609,-648.13939584,0.0001,2]
[356338357,1742295044619,-151.0,0.0001,2]
[356338358,1742295044629,-151.0,0.0001,2]
[356338359,1742295044638,-152.228621,0.0001,2]
[356338360,1742295044648,-151.0,0.0001,2]
[356338361,1742295044658,-151.0,0.0001,2]
[356338362,1742295044667,-231.027464,0.0001,2]
[356338363,1742295044677,-151.0,0.0001,2]
[356338364,1742295044687,-613.99909358,0.0001,2]
[356338365,1742295044697,-170.22706,0.0001,2]
[356338366,1742295044706,-151.0,0.0001,2]
[356338367,1742295044716,-154.028298,0.0001,2]
[356338368,1742295044978,-225.404295,0.0001,2]
[356338369,1742295045001,-225.404295,0.0001,2]
[356338370,1742295045012,-151.0,0.0001,2]
[356338371,1742295045021,-151.0,0.0001,2]
[356338372,1742295045031,-151.0,0.0001,2]
[356338373,1742295045041,-151.0,0.0001,2]
[356338374,1742295045051,-151.0,0.0001,2]
[356338375,1742295045060,-151.0,0.0001,2]
[356338376,1742295045071,-151.0,0.0001,2]
[356338377,1742295045081,-151.0,0.0001,2]
[356338378,1742295045091,-193.23537492,0.0001,2]
[356338379,1742295045100,-152.725804,0.0001,2]
[356338380,1742295045110,-151.0,0.0001,2]
[356338381,1742295045123,-6831.58352007,0.0001,2]
[356338382,1742295045133,-151.0,0.0001,2]
[356338383,1742295045142,-152.162106,0.0001,2]
[356338384,1742295045152,-151.0,0.0001,2]
[356338385,1742295045162,-151.0,0.0001,2]
[356338386,1742295045172,-151.0,0.0001,2]
[356338387,1742295045182,-151.0,0.0001,2]
[356338388,1742295045192,-151.0,0.0001,2]
[356338389,1742295045201,-159.90949,0.0001,2]
[356338390,1742295045211,-1211.885828,0.0001,2]
[356338391,1742295045222,-151.0,0.0001,2]
[356338392,1742295045232,-1211.885828,0.0001,2]
[356338393,1742295045242,-1385.51080806,0.0001,2]
[356338394,1742295045252,-1373.55749465,0.0001,2]
[356338395,1742295045262,-161.34,0.00010567,2]
[356338396,1742295045272,-150.0,0.0001067,2]
[356338397,1742295045282,-150.0,0.0001067,2]
[356338399,1742295045292,-150.0,0.000108,2]
[356338400,1742295045302,-197.0,0.00010889,2]
[356338401,1742295045312,-250.0,0.0001089,2]
[356338402,1742295045323,-250.0,0.0001089,2]
[356338403,1742295045333,-200.0,0.00010959,2]
[356338404,1742295045343,-200.0,0.00010959,2]
[356338405,1742295045352,-200.0,0.00010959,2]
[356338406,1742295045362,-22658.19962757,0.00010992,2]
[356338407,1742295045372,-300.0,0.00011,2]
[356338408,1742295045383,-322.92443123,0.00011099,2]
[356338409,1742295045393,-322.92443114,0.00011745,2]
[356338410,1742295045403,-165.44551486,0.000119,2]
[356338411,1742295045414,-1156.99,0.00012065,2]
[356338412,1742295045424,-250.0,0.0001209,2]
[356338413,1742295045435,-243.47,0.00012161,2]
[356338414,1742295045445,-2000.0,0.00012165,2]
[356338415,1742295045454,-250.0,0.00012172,2]
[356338416,1742295045464,-3125.67,0.0001227,2]
[356338417,1742295045474,-153.78,0.0001248,2]
[356338418,1742295045484,-150.0,0.00012732,2]
[356338419,1742295045494,-250.0,0.00012817,2]
[356338420,1742295045503,-150.99,0.00012893,2]
[356338421,1742295045513,-330.7,0.00012893,2]
[356338422,1742295045523,-1838.93,0.00012893,2]
[356338423,1742295045533,-3616.23,0.00012893,2]
[356338424,1742295045543,-628.86,0.00012893,2]
[356338425,1742295045553,-5677.05,0.00012893,2]
[356338426,1742295045563,-19999.99,0.00012893,2]
[356338427,1742295045574,-2483.31,0.00012893,2]
[356338428,1742295045584,-350.0,0.00013,2]
[356338429,1742295045594,-151.0,0.00013,2]
[356338430,1742295045605,-151.0,0.00013,2]
[356338431,1742295045617,-151.0,0.00013,2]
[356338432,1742295045627,-151.0,0.00013,2]
[356338433,1742295045637,-151.0,0.00013,2]
[356338434,1742295045647,-151.0,0.00013,2]
[356338435,1742295045656,-151.0,0.00013,2]
[356338436,1742295045667,-151.0,0.00013,2]
[356338437,1742295045676,-154.593785,0.00013,2]
[356338438,1742295045686,-151.0,0.00013,2]
[356338439,1742295045696,-151.670984,0.00013,2]
[356338440,1742295045705,-151.0,0.00013,2]
[356338441,1742295045715,-151.812565,0.00013,2]
[356338442,1742295045725,-151.0,0.00013,2]
[356338443,1742295045735,-151.0,0.00013,2]
[356338444,1742295045745,-151.0,0.00013,2]
[356338445,1742295045755,-151.0,0.00013,2]
[356338446,1742295045766,-153.441615,0.00013,2]
[356338447,1742295045781,-151.0,0.00013,2]
[356338448,1742295045790,-151.0,0.00013,2]
[356338449,1742295045800,-269.68,0.00013,2]
[356338451,1742295045811,-269.68,0.00013,2]
[356338452,1742295045822,-269.68,0.00013,2]
[356338453,1742295045832,-269.68,0.00013,2]
[356338454,1742295045842,-269.68,0.00013,2]
[356338455,1742295045855,-269.68,0.00013,2]
[356338456,1742295045865,-269.68,0.00013,2]
[356338457,1742295045875,-269.68,0.00013,2]
[356338458,1742295045885,-269.68,0.00013,2]
[356338459,1742295045895,-269.68,0.00013,2]
[356338460,1742295045906,-269.68,0.00013,2]
[356338461,1742295045916,-269.68,0.00013,2]
[356338462,1742295045927,-269.68,0.00013,2]
[356338463,1742295045937,-269.68,0.00013,2]
[356338464,1742295045947,-269.68,0.00013,2]
[356338465,1742295045957,-269.68,0.00013,2]
[356338466,1742295045966,-269.68,0.00013,2]
[356338467,1742295045976,-269.68,0.00013,2]
[356338468,1742295045986,-269.68,0.00013,2]
[356338469,1742295045996,-269.68,0.00013,2]
[356338470,1742295046007,-269.68,0.00013,2]
[356338471,1742295046016,-269.68,0.00013,2]
[356338472,1742295046027,-269.68,0.00013,2]
[356338473,1742295046036,-269.68,0.00013,2]
[356338474,1742295046046,-269.68,0.00013,2]
[356338475,1742295046056,-269.68,0.00013,2]
[356338476,1742295046066,-269.68,0.00013,2]
[356338477,1742295046079,-269.68,0.00013,2]
[356338478,1742295046089,-269.68,0.00013,2]
[356338479,1742295046099,-269.68,0.00013,2]
[356338480,1742295046109,-269.68,0.00013,2]
[356338481,1742295046118,-269.68,0.00013,2]
[356338482,1742295046128,-269.68,0.00013,2]
[356338483,1742295046138,-269.68,0.00013,2]
[356338484,1742295046148,-1211.885828,0.00013,2]
[356338485,1742295046158,-151.0,0.00013,2]
[356338486,1742295046168,-1211.885828,0.00013,2]
[356338487,1742295046177,-269.68,0.00013065,2]
[356338488,1742295046187,-1000.0,0.00013075,2]
[356338489,1742295046197,-151.0,0.00013093,2]
[356338490,1742295046207,-406.739551,0.00013093,2]
[356338491,1742295046216,-406.739551,0.00013093,2]
[356338492,1742295046226,-151.0,0.00013093,2]
[356338493,1742295046236,-151.0,0.00013093,2]
[356338494,1742295046246,-151.0,0.00013093,2]
[356338495,1742295046259,-151.0,0.00013093,2]
[356338496,1742295046273,-151.0,0.00013093,2]
[356338497,1742295046283,-151.0,0.00013093,2]
[356338498,1742295046292,-151.0,0.00013093,2]
[356338499,1742295046302,-151.0,0.00013093,2]
[356338500,1742295046311,-161.593855,0.00013093,2]
[356338501,1742295046321,-225.404295,0.00013093,2]
[356338502,1742295046331,-225.404295,0.00013093,2]
[356338503,1742295046340,-151.0,0.00013093,2]
[356338504,1742295046351,-151.0,0.00013093,2]
[356338505,1742295046361,-152.639347,0.00013093,2]
[356338506,1742295046371,-151.0,0.00013093,2]
[356338507,1742295046381,-23900.0,0.00013093,2]
[356338508,1742295046391,-648.13939583,0.00013209,2]
[356338509,1742295046401,-151.0,0.00013209,2]
[356338510,1742295046411,-151.0,0.00013209,2]
[356338511,1742295046420,-1500.0,0.00013304,2]
[356338512,1742295046431,-168.07,0.0001332,2]
[356338513,1742295046440,-2751.0,0.0001332,2]
[356338514,1742295046450,-204.65,0.00013324,2]
[356338515,1742295046460,-331.29,0.00013489,2]
[356338516,1742295046472,-331.29,0.00013525,2]
[356338517,1742295046483,-331.29,0.0001356,2]
[356338518,1742295046493,-164.89,0.00013562,2]
[356338519,1742295046503,-322.92443114,0.0001359,2]
[356338520,1742295046513,-331.29,0.00013596,2]
[356338521,1742295046523,-331.29,0.00013631,2]
[356338522,1742295046533,-185.5,0.00013632,2]
[356338523,1742295046543,-331.29,0.00013667,2]
[356338524,1742295046554,-269.68,0.0001369,2]
[356338525,1742295046564,-200.0,0.00013699,2]
[356338526,1742295046575,-150.26,0.00013699,2]
[356338527,1742295046584,-482.88,0.00013699,2]
[356338528,1742295046594,-16893.14,0.00013699,2]
[356338529,1742295046604,-2259.25,0.00013699,2]
[356338530,1742295046614,-1391.95,0.00013699,2]
[356338531,1742295046625,-1323.99,0.00013699,2]
[356338532,1742295046636,-500.0,0.00013699,2]
[356338533,1742295046645,-500.0,0.00013699,2]
[356338534,1742295046655,-365.33662809,0.00013699,2]
[356338535,1742295046665,-162.917472,0.00013699,2]
[356338536,1742295046675,-151.0,0.00013699,2]
[356338537,1742295046686,-151.0,0.00013699,2]
[356338538,1742295046698,-151.0,0.00013699,2]
[356338539,1742295046708,-151.0,0.00013699,2]
[356338540,1742295046718,-151.916278,0.00013699,2]
[356338541,1742295046728,-151.0,0.00013699,2]
[356338542,1742295046739,-151.0,0.00013699,2]
[356338543,1742295046748,-151.0,0.00013699,2]
[356338544,1742295046758,-153.724699,0.00013699,2]
[356338545,1742295046770,-151.0,0.00013699,2]
[356338546,1742295046781,-151.0,0.00013699,2]
[356338547,1742295046791,-151.0,0.00013699,2]
[356338548,1742295046801,-151.0,0.00013699,2]
[356338549,1742295046815,-151.0,0.00013699,2]
[356338550,1742295046826,-151.0,0.00013699,2]
[356338551,1742295046836,-151.0,0.00013699,2]
[356338552,1742295046846,-151.0,0.00013699,2]
[356338553,1742295046856,-1211.885828,0.00013699,2]
[356338554,1742295046866,-151.0,0.00013699,2]
[356338555,1742295046876,-1211.885828,0.00013699,2]
[356338556,1742295046886,-2972.77,0.000137,2]
[356338557,1742295046895,-2972.77,0.000137,2]
[356338558,1742295046905,-331.29,0.00013702,2]
[356338559,1742295046915,-331.29,0.00013738,2]
[356338560,1742295046925,-331.29,0.00013773,2]
[356338561,1742295046935,-331.29,0.00013809,2]
[356338562,1742295046945,-331.29,0.00013844,2]
[356338563,1742295046954,-331.29,0.0001388,2]
[356338564,1742295046966,-331.29,0.00013915,2]
[356338565,1742295046976,-151.0,0.00013931,2]
[356338566,1742295046988,-151.0,0.00013931,2]
[356338567,1742295046997,-151.0,0.00013931,2]
[356338568,1742295047007,-151.0,0.00013931,2]
[356338569,1742295047017,-151.0,0.00013931,2]
[356338570,1742295047027,-151.0,0.00013931,2]
[356338571,1742295047036,-151.0,0.00013931,2]
[356338572,1742295047046,-151.0,0.00013931,2]
[356338573,1742295047056,-151.0,0.00013931,2]
[356338574,1742295047066,-151.0,0.00013931,2]
[356338575,1742295047077,-151.0,0.00013931,2]
[356338576,1742295047086,-151.0,0.00013931,2]
[356338577,1742295047096,-151.0,0.00013931,2]
[356338578,1742295047105,-151.0,0.00013931,2]
[356338579,1742295047115,-151.0,0.00013931,2]
[356338580,1742295047124,-151.0,0.00013931,2]
[356338581,1742295047133,-151.0,0.00013931,2]
[356338582,1742295047143,-151.0,0.00013931,2]
[356338583,1742295047152,-151.0,0.00013931,2]
[356338584,1742295047162,-151.0,0.00013931,2]
[356338585,1742295047171,-151.0,0.00013931,2]
[356338586,1742295047181,-151.0,0.00013931,2]
[356338587,1742295047191,-151.0,0.00013931,2]
[356338588,1742295047200,-151.0,0.00013931,2]
[356338589,1742295047210,-151.0,0.00013931,2]
[356338590,1742295047220,-151.0,0.00013931,2]
[356338591,1742295047229,-151.0,0.00013931,2]
[356338592,1742295047239,-151.0,0.00013931,2]
[356338593,1742295047249,-151.0,0.00013931,2]
[356338594,1742295047259,-151.0,0.00013931,2]
[356338595,1742295047270,-151.0,0.00013931,2]
[356338596,1742295047280,-151.0,0.00013931,2]
[356338597,1742295047290,-151.0,0.00013931,2]
[356338598,1742295047300,-151.0,0.00013931,2]
[356338599,1742295047310,-151.0,0.00013931,2]
[356338600,1742295047320,-151.0,0.00013931,2]
[356338601,1742295047330,-151.0,0.00013931,2]
[356338602,1742295047340,-151.0,0.00013931,2]
[356338603,1742295047349,-151.0,0.00013931,2]
[356338604,1742295047359,-151.0,0.00013931,2]
[356338605,1742295047374,-151.0,0.00013931,2]
[356338606,1742295047384,-151.0,0.00013931,2]
[356338607,1742295047394,-151.0,0.00013931,2]
[356338608,1742295047404,-151.0,0.00013931,2]
[356338609,1742295047413,-151.0,0.00013931,2]
[356338610,1742295047423,-151.0,0.00013931,2]
[356338611,1742295047433,-151.0,0.00013931,2]
[356338612,1742295047444,-151.0,0.00013931,2]
[356338613,1742295047453,-151.0,0.00013931,2]
[356338614,1742295047463,-151.0,0.00013931,2]
[356338615,1742295047473,-151.0,0.00013931,2]
[356338616,1742295047483,-151.0,0.00013931,2]
[356338617,1742295047493,-179.962226,0.00013931,2]
[356338618,1742295047503,-151.0,0.00013931,2]
[356338619,1742295047512,-151.0,0.00013931,2]
[356338620,1742295047701,-151.0,0.00013931,2]
[356338621,1742295047711,-151.0,0.00013931,2]
[356338622,1742295047721,-225.404295,0.00013931,2]
[356338623,1742295047731,-225.404295,0.00013931,2]
[356338624,1742295047740,-151.912937,0.00013931,2]
[356338625,1742295047750,-151.0,0.00013931,2]
[356338626,1742295047760,-151.0,0.00013931,2]
[356338627,1742295047771,-2034.0,0.00013941,2]
[356338628,1742295047782,-151.0,0.00013941,2]
[356338629,1742295047792,-1013.0,0.00013941,2]
[356338630,1742295047802,-1114.0,0.00013941,2]
[356338631,1742295047812,-331.29,0.00013951,2]
[356338632,1742295047822,-331.29,0.00013986,2]
[356338633,1742295047831,-331.29,0.00014022,2]
[356338634,1742295047841,-331.29,0.00014057,2]
[356338635,1742295047855,-331.29,0.00014093,2]
[356338636,1742295047864,-331.29,0.00014128,2]
[356338637,1742295047874,-331.29,0.00014164,2]
[356338638,1742295047884,-297.62731,0.00014235,2]
[356338639,1742295047894,-406.739551,0.00014235,2]
[356338640,1742295047904,-406.739551,0.00014235,2]
[356338641,1742295047914,-151.0,0.00014235,2]
[356338642,1742295047924,-278.290864,0.00014235,2]
[356338643,1742295047934,-151.0,0.00014235,2]
[356338644,1742295047945,-151.0,0.00014235,2]
[356338645,1742295047954,-151.0,0.00014312,2]
[356338646,1742295047963,-151.0,0.00014312,2]
[356338647,1742295047974,-151.0,0.00014312,2]
[356338648,1742295047984,-151.0,0.00014312,2]
[356338649,1742295047995,-400.595796,0.00014312,2]
[356338650,1742295048005,-151.0,0.00014312,2]
[356338651,1742295048015,-400.595796,0.00014312,2]
[356338652,1742295048024,-151.0,0.00014312,2]
[356338653,1742295048034,-151.0,0.00014312,2]
[356338654,1742295048045,-151.0,0.00014312,2]
[356338655,1742295048055,-151.0,0.00014312,2]
[356338656,1742295048064,-230.300282,0.00014312,2]
[356338657,1742295048075,-191.581575,0.00014312,2]
[356338658,1742295048084,-151.0,0.00014312,2]
[356338659,1742295048094,-151.0,0.00014312,2]
[356338660,1742295048104,-151.0,0.00014312,2]
[356338661,1742295048114,-1156.99,0.00014329,2]
[356338662,1742295048123,-151.0,0.00014504,2]
[356338663,1742295048134,-151.0,0.00014504,2]
[356338664,1742295048144,-151.0,0.00014607,2]
[356338665,1742295048155,-1000.0,0.00014709,2]
[356338666,1742295048165,-942.4,0.00014766,2]
[356338667,1742295048175,-5550.0,0.000149,5]
[356338668,1742295048185,-400.0,0.00015,2]
[356338669,1742295048195,-170.22706,0.00015,2]
[356338670,1742295048206,-300.0,0.00015068,2]
[356338671,1742295048216,-367.15136268,0.00015352,2]
[356338672,1742295048227,-592.49,0.00015406,2]
[356338673,1742295048237,-322.92443114,0.00015435,2]
[356338674,1742295048247,-153.78,0.000156,2]
[356338675,1742295048257,-161.34,0.00015851,2]
[356338676,1742295048267,-193.31,0.000159,2]
[356338677,1742295048276,-1000.0,0.00016344,2]
[356338678,1742295048287,-153.384424,0.00016438,2]
[356338679,1742295048297,-153.384424,0.00016438,2]
[356338680,1742295048307,-153.384424,0.00016438,2]
[356338681,1742295048316,-153.384424,0.00016438,2]
[356338682,1742295048328,-300.0,0.00016438,2]
[356338683,1742295048338,-648.13939583,0.00016518,2]
[356338684,1742295048348,-151.0,0.00016533,2]
[356338685,1742295048358,-151.0,0.00016533,2]
[356338686,1742295048369,-1156.99,0.00016593,2]
[356338687,1742295048379,-168.07,0.00016649,2]
[356338688,1742295048390,-31216.69583602,0.0001683,2]
[356338689,1742295048400,-154.36148,0.0001683,2]
[356338690,1742295048410,-153.384424,0.0001683,2]
[356338691,1742295048420,-153.384424,0.0001683,2]
[356338692,1742295048431,-151.0,0.0001683,2]
[356338693,1742295048440,-151.0,0.0001683,2]
[356338694,1742295048450,-151.0,0.0001683,2]
[356338695,1742295048461,-181.739404,0.0001683,2]
[356338696,1742295048471,-152.924929,0.0001683,2]
[356338697,1742295048481,-400.595796,0.0001683,2]
[356338698,1742295048491,-151.0,0.0001683,2]
[356338699,1742295048501,-400.595796,0.0001683,2]
[356338700,1742295048510,-240.872782,0.0001683,2]
[356338701,1742295048520,-151.0,0.0001683,2]
[356338702,1742295048530,-151.0,0.0001683,2]
[356338703,1742295048540,-151.0,0.0001683,2]
[356338704,1742295048549,-153.328683,0.0001683,2]
[356338705,1742295048559,-151.0,0.0001683,2]
[356338706,1742295048569,-151.0,0.0001683,2]
[356338707,1742295048580,-406.739551,0.0001683,2]
[356338708,1742295048590,-406.739551,0.0001683,2]
[356338709,1742295048600,-151.0,0.0001683,2]
[356338710,1742295048609,-153.2328,0.0001683,2]